[Event "Late-Titled-Tuesday-Blitz-January-23-2024"]
[Site "Chess.com"]
[Date "2024.01.23"]
[Round "8"]
[White "Alex_Sahakyan2006"]
[Black "Sargsyan_Shant"]
[Result "1-0"]
[WhiteElo "2747"]
[BlackElo "2906"]
[TimeControl "180+1"]
[EndTime "15:26:06 PST"]
[Termination "Alex_Sahakyan2006 won on time"]

1. e4 {[%clk 0:03:00.9]} 1... g6 {[%clk 0:02:55.7]} 2. d4 {[%clk 0:02:55.9]}
2... Nf6 {[%clk 0:02:56.1]} 3. e5 {[%clk 0:02:55.1]} 3... Nh5 {[%clk 0:02:56.4]}
4. Be2 {[%clk 0:02:49.9]} 4... d6 {[%clk 0:02:56.6]} 5. Nf3 {[%clk 0:02:46.9]}
5... Bg7 {[%clk 0:02:57.2]} 6. O-O {[%clk 0:02:41.4]} 6... dxe5 {[%clk
0:02:57.6]} 7. Nxe5 {[%clk 0:02:38.7]} 7... Bxe5 {[%clk 0:02:57.9]} 8. dxe5
{[%clk 0:02:37.5]} 8... Qxd1 {[%clk 0:02:58.8]} 9. Rxd1 {[%clk 0:02:36.8]} 9...
Nc6 {[%clk 0:02:59.7]} 10. Nc3 {[%clk 0:02:32.4]} 10... Bd7 {[%clk 0:02:49]} 11.
Bh6 {[%clk 0:02:16.6]} 11... Rg8 {[%clk 0:02:28.1]} 12. Nd5 {[%clk 0:01:40.9]}
12... O-O-O {[%clk 0:02:26.2]} 13. Bb5 {[%clk 0:01:32.1]} 13... Rde8 {[%clk
0:02:22.1]} 14. Bg5 {[%clk 0:01:27.8]} 14... f6 {[%clk 0:01:47]} 15. exf6 {[%clk
0:01:25]} 15... exf6 {[%clk 0:01:47.9]} 16. Nxf6 {[%clk 0:01:22.6]} 16... Nxf6
{[%clk 0:01:48.2]} 17. Bxf6 {[%clk 0:01:23.5]} 17... Rgf8 {[%clk 0:01:49.1]} 18.
Bg5 {[%clk 0:01:19.4]} 18... Ne5 {[%clk 0:01:49.1]} 19. Bxd7+ {[%clk 0:01:13.3]}
19... Nxd7 {[%clk 0:01:50]} 20. Re1 {[%clk 0:01:11.9]} 20... Nc5 {[%clk
0:01:45.4]} 21. Be7 {[%clk 0:01:08.9]} 21... Rf5 {[%clk 0:01:45.1]} 22. g4
{[%clk 0:01:00.4]} 22... Rd5 {[%clk 0:01:31.8]} 23. c4 {[%clk 0:00:59.3]} 23...
Rxe7 {[%clk 0:01:29.1]} 24. Rxe7 {[%clk 0:00:50]} 24... Rd4 {[%clk 0:01:30]} 25.
h3 {[%clk 0:00:46.9]} 25... h5 {[%clk 0:01:30.1]} 26. gxh5 {[%clk 0:00:43.1]}
26... gxh5 {[%clk 0:01:31]} 27. b3 {[%clk 0:00:43.5]} 27... b6 {[%clk
0:01:30.1]} 28. Rh7 {[%clk 0:00:40.9]} 28... h4 {[%clk 0:01:29.9]} 29. Re1
{[%clk 0:00:40.2]} 29... a5 {[%clk 0:01:28.6]} 30. Ree7 {[%clk 0:00:38.6]} 30...
Na6 {[%clk 0:01:28.8]} 31. Ref7 {[%clk 0:00:32.8]} 31... Kb7 {[%clk 0:01:27.1]}
32. f4 {[%clk 0:00:32.5]} 32... Rd1+ {[%clk 0:01:27.4]} 33. Kf2 {[%clk
0:00:32.1]} 33... Rd2+ {[%clk 0:01:28.3]} 34. Ke3 {[%clk 0:00:28.5]} 34... Rxa2
{[%clk 0:01:29.2]} 35. f5 {[%clk 0:00:19.5]} 35... Rb2 {[%clk 0:01:29.4]} 36. f6
{[%clk 0:00:19.9]} 36... Rxb3+ {[%clk 0:01:30.1]} 37. Ke4 {[%clk 0:00:13.9]}
37... Rb1 {[%clk 0:01:29.5]} 38. Rf8 {[%clk 0:00:08.7]} 38... Re1+ {[%clk
0:01:25.3]} 39. Kd4 {[%clk 0:00:06.8]} 39... Nc5 {[%clk 0:01:16]} 40. Re7 {[%clk
0:00:05]} 40... Rd1+ {[%clk 0:01:04.3]} 41. Kc3 {[%clk 0:00:03.9]} 41... Rc1+
{[%clk 0:00:47.9]} 42. Kb2 {[%clk 0:00:03]} 42... Nd3+ {[%clk 0:00:48.4]} 43.
Kb3 {[%clk 0:00:02.5]} 43... a4+ {[%clk 0:00:38.6]} 44. Kxa4 {[%clk 0:00:01.9]}
44... Rc3 {[%clk 0:00:39.2]} 45. c5 {[%clk 0:00:01.6]} 45... Ka6 {[%clk
0:00:09.6]} 46. cxb6 {[%clk 0:00:01.8]} 46... c5 {[%clk 0:00:09.8]} 47. Ra8+
{[%clk 0:00:02.2]} 47... Kxb6 {[%clk 0:00:10.6]} 48. Rb8+ {[%clk 0:00:02.7]}
48... Kc6 {[%clk 0:00:10.8]} 49. f7 {[%clk 0:00:02.3]} 49... Rc4+ {[%clk
0:00:03.5]} 50. Ka3 {[%clk 0:00:02.8]} 50... Rc3+ {[%clk 0:00:03.7]} 51. Rb3
{[%clk 0:00:03.5]} 51... Rc1 {[%clk 0:00:03.6]} 52. Rxd3 {[%clk 0:00:03.8]} 1-0

[Event "Late-Titled-Tuesday-Blitz-January-23-2024"]
[Site "Chess.com"]
[Date "2024.01.23"]
[Round "8"]
[White "ATM622"]
[Black "GoValya"]
[Result "1-0"]
[WhiteElo "2472"]
[BlackElo "2298"]
[TimeControl "180+1"]
[EndTime "15:26:10 PST"]
[Termination "ATM622 won on time"]

1. d4 {[%clk 0:03:00.9]} 1... d5 {[%clk 0:02:58.3]} 2. c4 {[%clk 0:03:01.3]}
2... c6 {[%clk 0:02:58.7]} 3. Nf3 {[%clk 0:03:01.6]} 3... g6 {[%clk 0:02:58.7]}
4. Nbd2 {[%clk 0:03:00.7]} 4... Bg7 {[%clk 0:02:59.1]} 5. g3 {[%clk 0:03:01]}
5... Nf6 {[%clk 0:02:55.7]} 6. Bg2 {[%clk 0:03:01.6]} 6... O-O {[%clk
0:02:56.4]} 7. O-O {[%clk 0:03:01.7]} 7... dxc4 {[%clk 0:02:56.8]} 8. Nxc4
{[%clk 0:03:00.4]} 8... b5 {[%clk 0:02:56.1]} 9. Nce5 {[%clk 0:02:58.9]} 9...
Bb7 {[%clk 0:02:56.4]} 10. a4 {[%clk 0:02:58]} 10... Nbd7 {[%clk 0:02:50.1]} 11.
Ng5 {[%clk 0:02:47.9]} 11... Nxe5 {[%clk 0:02:42.4]} 12. dxe5 {[%clk 0:02:46.2]}
12... Nd5 {[%clk 0:02:42.5]} 13. e6 {[%clk 0:02:46]} 13... f6 {[%clk 0:02:32.5]}
14. Nf7 {[%clk 0:02:44]} 14... Qc8 {[%clk 0:02:27.7]} 15. Nh6+ {[%clk
0:02:42.7]} 15... Kh8 {[%clk 0:02:25]} 16. axb5 {[%clk 0:02:38.9]} 16... Qxe6
{[%clk 0:02:20.6]} 17. bxc6 {[%clk 0:02:38.8]} 17... Bxc6 {[%clk 0:02:08.9]} 18.
h4 {[%clk 0:02:30.1]} 18... Rfd8 {[%clk 0:01:53.6]} 19. Qb3 {[%clk 0:02:27.4]}
19... Rab8 {[%clk 0:01:42.6]} 20. Qa3 {[%clk 0:02:20.9]} 20... Nb4 {[%clk
0:01:15.2]} 21. Bxc6 {[%clk 0:01:57.1]} 21... Nxc6 {[%clk 0:01:15.3]} 22. Qa2
{[%clk 0:01:44.1]} 22... Qxa2 {[%clk 0:01:08.8]} 23. Rxa2 {[%clk 0:01:43.6]}
23... Bxh6 {[%clk 0:01:09.3]} 24. Bxh6 {[%clk 0:01:43]} 24... Nd4 {[%clk
0:01:04.8]} 25. Re1 {[%clk 0:01:30.5]} 25... Rb7 {[%clk 0:00:58.8]} 26. Kg2
{[%clk 0:01:27.2]} 26... Kg8 {[%clk 0:00:54.6]} 27. Rd1 {[%clk 0:01:17.9]} 27...
Kf7 {[%clk 0:00:52.9]} 28. Be3 {[%clk 0:01:09.6]} 28... Nc6 {[%clk 0:00:49.2]}
29. Rxd8 {[%clk 0:01:09.7]} 29... Nxd8 {[%clk 0:00:49.4]} 30. Bxa7 {[%clk
0:01:09.6]} 30... Nc6 {[%clk 0:00:49.3]} 31. Be3 {[%clk 0:01:06.3]} 31... Ne5
{[%clk 0:00:47.9]} 32. Bd4 {[%clk 0:01:04]} 32... Nc4 {[%clk 0:00:46.2]} 33. Bc3
{[%clk 0:01:03.5]} 33... Rb3 {[%clk 0:00:35.3]} 34. e4 {[%clk 0:01:00.4]} 34...
g5 {[%clk 0:00:31.1]} 35. hxg5 {[%clk 0:00:55.7]} 35... fxg5 {[%clk 0:00:32]}
36. Kf1 {[%clk 0:00:54.3]} 36... Kg6 {[%clk 0:00:29.7]} 37. Ke2 {[%clk 0:00:49]}
37... Kh5 {[%clk 0:00:23.4]} 38. f3 {[%clk 0:00:45.8]} 38... Kg6 {[%clk
0:00:22.5]} 39. Kd3 {[%clk 0:00:44.2]} 39... Nd6 {[%clk 0:00:22.7]} 40. Ra7
{[%clk 0:00:32.9]} 40... Kf7 {[%clk 0:00:20.8]} 41. Kc2 {[%clk 0:00:26]} 41...
Rb5 {[%clk 0:00:20.5]} 42. Kd3 {[%clk 0:00:22.2]} 42... Ke6 {[%clk 0:00:19.9]}
43. f4 {[%clk 0:00:21.5]} 43... gxf4 {[%clk 0:00:19.7]} 44. gxf4 {[%clk
0:00:22.4]} 44... h5 {[%clk 0:00:20.2]} 45. f5+ {[%clk 0:00:21.6]} 45... Kf7
{[%clk 0:00:20.4]} 46. f6 {[%clk 0:00:20.5]} 46... Rb7 {[%clk 0:00:18.1]} 47.
Ra5 {[%clk 0:00:11.1]} 47... exf6 {[%clk 0:00:16.3]} 48. Rxh5 {[%clk 0:00:10.7]}
48... Ke6 {[%clk 0:00:12.8]} 49. Rh6 {[%clk 0:00:10.7]} 49... Ne8 {[%clk
0:00:11.8]} 50. e5 {[%clk 0:00:09.9]} 50... Rd7+ {[%clk 0:00:10.3]} 51. Ke4
{[%clk 0:00:07.9]} 51... Ra7 {[%clk 0:00:09]} 52. exf6 {[%clk 0:00:07.6]} 52...
Ra4+ {[%clk 0:00:09.2]} 53. Kd3 {[%clk 0:00:07.7]} 53... Kf7 {[%clk 0:00:09.5]}
54. Rh7+ {[%clk 0:00:06.3]} 54... Ke6 {[%clk 0:00:09.3]} 55. Re7+ {[%clk
0:00:06.4]} 55... Kd5 {[%clk 0:00:09.9]} 56. Rxe8 {[%clk 0:00:06.8]} 56... Ra1
{[%clk 0:00:08.5]} 57. f7 {[%clk 0:00:06.8]} 57... Rf1 {[%clk 0:00:08.1]} 58.
f8=Q {[%clk 0:00:06.3]} 58... Rd1+ {[%clk 0:00:07.8]} 59. Kc2 {[%clk 0:00:06.3]}
1-0

[Event "Late-Titled-Tuesday-Blitz-January-23-2024"]
[Site "Chess.com"]
[Date "2024.01.23"]
[Round "8"]
[White "IlanSchnaider"]
[Black "subham777"]
[Result "1-0"]
[WhiteElo "2754"]
[BlackElo "2540"]
[TimeControl "180+1"]
[EndTime "15:26:15 PST"]
[Termination "IlanSchnaider won by resignation"]

1. Nf3 {[%clk 0:03:00.9]} 1... d5 {[%clk 0:02:59.9]} 2. b3 {[%clk 0:03:00.3]}
2... Nf6 {[%clk 0:03:00.3]} 3. Bb2 {[%clk 0:02:57.2]} 3... e6 {[%clk 0:03:00.4]}
4. d3 {[%clk 0:02:53.8]} 4... Be7 {[%clk 0:02:59]} 5. c4 {[%clk 0:02:54.2]} 5...
O-O {[%clk 0:02:55.9]} 6. Nbd2 {[%clk 0:02:54.7]} 6... c5 {[%clk 0:02:55.6]} 7.
g3 {[%clk 0:02:50.6]} 7... Nc6 {[%clk 0:02:49.8]} 8. Bg2 {[%clk 0:02:51]} 8...
d4 {[%clk 0:02:33.9]} 9. O-O {[%clk 0:02:50.7]} 9... Qc7 {[%clk 0:02:31.8]} 10.
a3 {[%clk 0:02:49.7]} 10... a5 {[%clk 0:02:28.7]} 11. Qc2 {[%clk 0:02:49.9]}
11... e5 {[%clk 0:02:24.7]} 12. e3 {[%clk 0:02:50.2]} 12... h6 {[%clk
0:02:08.6]} 13. Rfe1 {[%clk 0:02:46.1]} 13... Bf5 {[%clk 0:01:59.9]} 14. Ne4
{[%clk 0:02:26.4]} 14... Nxe4 {[%clk 0:01:37.3]} 15. dxe4 {[%clk 0:02:27.3]}
15... Bh7 {[%clk 0:01:37.4]} 16. exd4 {[%clk 0:02:24.5]} 16... Nxd4 {[%clk
0:01:34.7]} 17. Nxd4 {[%clk 0:02:24.7]} 17... exd4 {[%clk 0:01:35.2]} 18. Rad1
{[%clk 0:02:22]} 18... Rad8 {[%clk 0:01:25.1]} 19. f4 {[%clk 0:02:20.9]} 19...
f6 {[%clk 0:01:21.9]} 20. Qd2 {[%clk 0:02:17]} 20... b6 {[%clk 0:01:13.4]} 21.
e5 {[%clk 0:02:15.3]} 21... fxe5 {[%clk 0:01:12.4]} 22. Rxe5 {[%clk 0:02:16.2]}
22... Bd6 {[%clk 0:01:10.8]} 23. Re2 {[%clk 0:02:07]} 23... Bf5 {[%clk
0:01:10.8]} 24. h3 {[%clk 0:02:00.2]} 24... Rde8 {[%clk 0:01:06.3]} 25. Rde1
{[%clk 0:01:58.1]} 25... Rxe2 {[%clk 0:01:05.6]} 26. Rxe2 {[%clk 0:01:58.3]}
26... Bg6 {[%clk 0:01:01]} 27. Kh2 {[%clk 0:01:52.7]} 27... h5 {[%clk 0:00:55]}
28. Bd5+ {[%clk 0:01:45.1]} 28... Kh8 {[%clk 0:00:53.2]} 29. h4 {[%clk
0:01:23.4]} 29... Rxf4 {[%clk 0:00:49.1]} 30. Qe1 {[%clk 0:01:09.9]} 30... Rf8
{[%clk 0:00:35.2]} 31. Bc1 {[%clk 0:01:04.2]} 31... Bf7 {[%clk 0:00:28.2]} 32.
Be4 {[%clk 0:01:00.8]} 32... a4 {[%clk 0:00:27.3]} 33. bxa4 {[%clk 0:00:41.7]}
33... Bxc4 {[%clk 0:00:25.3]} 34. Rg2 {[%clk 0:00:42.3]} 34... Qe7 {[%clk
0:00:21.4]} 35. Bg5 {[%clk 0:00:40.4]} 35... Qe5 {[%clk 0:00:18.2]} 36. Bf4
{[%clk 0:00:34.8]} 36... Rxf4 {[%clk 0:00:15.9]} 37. gxf4 {[%clk 0:00:35.1]}
37... Qxf4+ {[%clk 0:00:16.4]} 38. Kg1 {[%clk 0:00:35.8]} 38... Qe3+ {[%clk
0:00:12.5]} 39. Qxe3 {[%clk 0:00:32.2]} 39... dxe3 {[%clk 0:00:13.4]} 40. Bf3
{[%clk 0:00:31.8]} 40... Bf7 {[%clk 0:00:06.4]} 41. Rb2 {[%clk 0:00:27.7]} 41...
c4 {[%clk 0:00:04.1]} 42. Rxb6 {[%clk 0:00:22]} 42... Bc5 {[%clk 0:00:04.5]} 43.
Rb8+ {[%clk 0:00:22.6]} 43... Kh7 {[%clk 0:00:04.5]} 44. Kf1 {[%clk 0:00:10.3]}
44... Bg6 {[%clk 0:00:03.7]} 45. Rc8 {[%clk 0:00:08]} 45... Bd3+ {[%clk
0:00:03.6]} 46. Kg2 {[%clk 0:00:07.3]} 46... Bxa3 {[%clk 0:00:02.4]} 47. Re8
{[%clk 0:00:04.3]} 47... Bb4 {[%clk 0:00:01.8]} 48. Rxe3 {[%clk 0:00:03.9]}
48... Be4 {[%clk 0:00:02.5]} 49. Bxe4+ {[%clk 0:00:04.1]} 49... g6 {[%clk
0:00:02.8]} 50. Bd5 {[%clk 0:00:03.6]} 50... c3 {[%clk 0:00:02.6]} 51. Bb3
{[%clk 0:00:04]} 51... Kg7 {[%clk 0:00:03.1]} 52. Re2 {[%clk 0:00:04.5]} 52...
Kf6 {[%clk 0:00:03.5]} 53. Kf3 {[%clk 0:00:05]} 53... g5 {[%clk 0:00:03.1]} 54.
hxg5+ {[%clk 0:00:04.9]} 54... Kxg5 {[%clk 0:00:04]} 55. Re5+ {[%clk 0:00:05.4]}
55... Kf6 {[%clk 0:00:04.3]} 56. Re4 {[%clk 0:00:05.9]} 56... Ba5 {[%clk
0:00:04.2]} 57. Re6+ {[%clk 0:00:05.7]} 57... Kf5 {[%clk 0:00:04.3]} 58. Rd6
{[%clk 0:00:05.9]} 58... Bb4 {[%clk 0:00:04]} 59. Rd5+ {[%clk 0:00:06.5]} 59...
Kf6 {[%clk 0:00:04.1]} 60. Rxh5 {[%clk 0:00:06.6]} 60... Ke7 {[%clk 0:00:02.2]}
61. Rd5 {[%clk 0:00:07]} 61... Ke8 {[%clk 0:00:01.7]} 62. Bc2 {[%clk 0:00:06.9]}
62... Ke7 {[%clk 0:00:02]} 63. Ke4 {[%clk 0:00:07.8]} 63... Ke6 {[%clk
0:00:02.4]} 64. a5 {[%clk 0:00:08.5]} 64... Ke7 {[%clk 0:00:01.4]} 65. a6 {[%clk
0:00:08.9]} 1-0

[Event "Late-Titled-Tuesday-Blitz-January-23-2024"]
[Site "Chess.com"]
[Date "2024.01.23"]
[Round "8"]
[White "szachmistrz2500"]
[Black "howitzer14"]
[Result "1/2-1/2"]
[WhiteElo "2508"]
[BlackElo "2947"]
[TimeControl "180+1"]
[EndTime "15:26:28 PST"]
[Termination "Game drawn by repetition"]

1. d4 {[%clk 0:02:59.9]} 1... Nf6 {[%clk 0:02:52.7]} 2. Nf3 {[%clk 0:02:59.4]}
2... c5 {[%clk 0:02:52.5]} 3. e3 {[%clk 0:02:54.7]} 3... d5 {[%clk 0:02:44.7]}
4. Be2 {[%clk 0:02:54.5]} 4... Nc6 {[%clk 0:02:42.1]} 5. O-O {[%clk 0:02:55]}
5... Bg4 {[%clk 0:02:40.6]} 6. a3 {[%clk 0:02:52.5]} 6... e6 {[%clk 0:02:39.6]}
7. dxc5 {[%clk 0:02:52.2]} 7... Bxc5 {[%clk 0:02:27.5]} 8. b4 {[%clk 0:02:52.3]}
8... Bb6 {[%clk 0:02:25.7]} 9. Bb2 {[%clk 0:02:52.5]} 9... Bxf3 {[%clk
0:01:50.7]} 10. Bxf3 {[%clk 0:02:51.3]} 10... O-O {[%clk 0:01:51.6]} 11. Nd2
{[%clk 0:02:40.3]} 11... a5 {[%clk 0:01:49.5]} 12. b5 {[%clk 0:02:36.6]} 12...
Ne7 {[%clk 0:01:50.1]} 13. c4 {[%clk 0:02:34.9]} 13... d4 {[%clk 0:01:47.2]} 14.
exd4 {[%clk 0:02:16.5]} 14... Bxd4 {[%clk 0:01:38.4]} 15. Qc2 {[%clk 0:01:49.9]}
15... Bxb2 {[%clk 0:01:23.1]} 16. Qxb2 {[%clk 0:01:48.9]} 16... Qc7 {[%clk
0:01:23.1]} 17. Rac1 {[%clk 0:01:44.3]} 17... Rad8 {[%clk 0:01:01.1]} 18. c5
{[%clk 0:01:37.5]} 18... Nf5 {[%clk 0:00:59.9]} 19. Ne4 {[%clk 0:01:27.9]} 19...
Nd4 {[%clk 0:00:47.6]} 20. Nxf6+ {[%clk 0:01:25.7]} 20... gxf6 {[%clk
0:00:48.5]} 21. Be4 {[%clk 0:01:18.1]} 21... Qe5 {[%clk 0:00:42.5]} 22. Qb1
{[%clk 0:01:10.9]} 22... Ne2+ {[%clk 0:00:40.9]} 23. Kh1 {[%clk 0:01:10.6]}
23... Rd4 {[%clk 0:00:22]} 24. Bxh7+ {[%clk 0:00:51.3]} 24... Kg7 {[%clk
0:00:21.5]} 25. f4 {[%clk 0:00:49.2]} 25... Qh5 {[%clk 0:00:12.9]} 26. Bd3
{[%clk 0:00:44]} 26... Ng3+ {[%clk 0:00:04.1]} 27. Kg1 {[%clk 0:00:44.1]} 27...
Nxf1 {[%clk 0:00:04.7]} 28. Rxf1 {[%clk 0:00:41.4]} 28... Qxc5 {[%clk
0:00:02.5]} 29. Kh1 {[%clk 0:00:40.2]} 29... Rfd8 {[%clk 0:00:02.9]} 30. Be4
{[%clk 0:00:40.1]} 30... b6 {[%clk 0:00:02.5]} 31. Bc6 {[%clk 0:00:39.7]} 31...
f5 {[%clk 0:00:03]} 32. h3 {[%clk 0:00:39.6]} 32... Rd2 {[%clk 0:00:03.5]} 33.
Qa1+ {[%clk 0:00:39.3]} 33... Qd4 {[%clk 0:00:04.2]} 34. Qe1 {[%clk 0:00:38.6]}
34... Rd1 {[%clk 0:00:04.5]} 35. Qg3+ {[%clk 0:00:38.8]} 35... Kf8 {[%clk
0:00:05]} 36. Rxd1 {[%clk 0:00:39.3]} 36... Qxd1+ {[%clk 0:00:05.7]} 37. Kh2
{[%clk 0:00:40.2]} 37... Qd4 {[%clk 0:00:05]} 38. Qh4 {[%clk 0:00:39.5]} 38...
Rd6 {[%clk 0:00:04.8]} 39. Qg5 {[%clk 0:00:36.9]} 39... Qg7 {[%clk 0:00:04]} 40.
Qh4 {[%clk 0:00:36.1]} 40... f6 {[%clk 0:00:04.5]} 41. Qf2 {[%clk 0:00:34.9]}
41... Qc7 {[%clk 0:00:03.3]} 42. Qh4 {[%clk 0:00:34.3]} 42... Qg7 {[%clk
0:00:03.5]} 43. Qf2 {[%clk 0:00:34.4]} 43... Qc7 {[%clk 0:00:03.6]} 44. Qh4
{[%clk 0:00:34.4]} 44... Kg7 {[%clk 0:00:03.1]} 45. Qg3+ {[%clk 0:00:33.7]}
45... Kf7 {[%clk 0:00:03.5]} 46. Qh4 {[%clk 0:00:34.1]} 46... Rxc6 {[%clk
0:00:02.1]} 47. bxc6 {[%clk 0:00:23.8]} 47... Qxc6 {[%clk 0:00:03]} 48. Qh7+
{[%clk 0:00:23.8]} 48... Ke8 {[%clk 0:00:03.5]} 49. Qg8+ {[%clk 0:00:23.2]}
49... Kd7 {[%clk 0:00:03.2]} 50. Qf7+ {[%clk 0:00:22.8]} 50... Kd6 {[%clk
0:00:03.9]} 51. Qxf6 {[%clk 0:00:23.3]} 51... Qe4 {[%clk 0:00:03.3]} 52. Qd8+
{[%clk 0:00:21.6]} 52... Kc5 {[%clk 0:00:03.8]} 53. Qb8 {[%clk 0:00:21.3]} 53...
b5 {[%clk 0:00:03.8]} 54. h4 {[%clk 0:00:21.1]} 54... b4 {[%clk 0:00:03.9]} 55.
axb4+ {[%clk 0:00:20.6]} 55... axb4 {[%clk 0:00:04.8]} 56. h5 {[%clk 0:00:20.9]}
56... Qe2 {[%clk 0:00:05]} 57. Qc8+ {[%clk 0:00:16.6]} 57... Kd4 {[%clk
0:00:04.5]} 58. Qd7+ {[%clk 0:00:16.3]} 58... Kc3 {[%clk 0:00:04.2]} 59. Qf7
{[%clk 0:00:07.5]} 59... Qg4 {[%clk 0:00:02.5]} 60. Qxe6 {[%clk 0:00:05.5]}
60... Qxf4+ {[%clk 0:00:01.8]} 61. Kh1 {[%clk 0:00:05.3]} 61... Qf1+ {[%clk
0:00:02.1]} 62. Kh2 {[%clk 0:00:05]} 62... Qf4+ {[%clk 0:00:02.7]} 63. Kg1
{[%clk 0:00:05.3]} 63... Qc1+ {[%clk 0:00:02.5]} 64. Kh2 {[%clk 0:00:05.5]}
64... Qg5 {[%clk 0:00:03.3]} 65. Kg1 {[%clk 0:00:05.7]} 65... Qxh5 {[%clk
0:00:03.2]} 66. Qc6+ {[%clk 0:00:05]} 66... Kb3 {[%clk 0:00:02.8]} 67. Qd5+
{[%clk 0:00:05.3]} 67... Ka3 {[%clk 0:00:02.8]} 68. Qa5+ {[%clk 0:00:05.1]}
68... Kb3 {[%clk 0:00:03.4]} 69. Qd5+ {[%clk 0:00:05.3]} 69... Kc3 {[%clk
0:00:03.9]} 70. Qc5+ {[%clk 0:00:05.4]} 70... Kb3 {[%clk 0:00:04.4]} 71. Qd5+
{[%clk 0:00:05.3]} 1/2-1/2

[Event "Late-Titled-Tuesday-Blitz-January-23-2024"]
[Site "Chess.com"]
[Date "2024.01.23"]
[Round "8"]
[White "Fh2411"]
[Black "mfwagnerpeixoto"]
[Result "1/2-1/2"]
[WhiteElo "2562"]
[BlackElo "2322"]
[TimeControl "180+1"]
[EndTime "15:26:28 PST"]
[Termination "Game drawn - insufficient material"]

1. d4 {[%clk 0:03:00.9]} 1... Nf6 {[%clk 0:02:59]} 2. Nf3 {[%clk 0:03:01.2]}
2... e6 {[%clk 0:02:57.7]} 3. Bf4 {[%clk 0:03:01.8]} 3... b6 {[%clk 0:02:56.7]}
4. e3 {[%clk 0:03:02.1]} 4... Bb7 {[%clk 0:02:56.9]} 5. h3 {[%clk 0:03:01.7]}
5... Be7 {[%clk 0:02:57.3]} 6. Be2 {[%clk 0:03:01.8]} 6... O-O {[%clk
0:02:57.6]} 7. O-O {[%clk 0:03:02.4]} 7... c5 {[%clk 0:02:58]} 8. a4 {[%clk
0:03:01]} 8... Nc6 {[%clk 0:02:57.8]} 9. Nc3 {[%clk 0:03:01.1]} 9... d6 {[%clk
0:02:56.2]} 10. Bh2 {[%clk 0:02:52.6]} 10... a6 {[%clk 0:02:55.8]} 11. Re1
{[%clk 0:02:45.6]} 11... Rc8 {[%clk 0:02:55.1]} 12. Bf1 {[%clk 0:02:40.4]} 12...
cxd4 {[%clk 0:02:46.7]} 13. exd4 {[%clk 0:02:28.5]} 13... Na5 {[%clk 0:02:46.4]}
14. Nb1 {[%clk 0:02:24.1]} 14... Qc7 {[%clk 0:02:22.7]} 15. c3 {[%clk
0:02:20.1]} 15... Nc4 {[%clk 0:02:16]} 16. Bxc4 {[%clk 0:02:03.8]} 16... Qxc4
{[%clk 0:02:16.9]} 17. Nbd2 {[%clk 0:02:03.6]} 17... Qc6 {[%clk 0:02:14.5]} 18.
Nf1 {[%clk 0:02:00.1]} 18... Rfe8 {[%clk 0:02:12.5]} 19. Ne3 {[%clk 0:01:59.8]}
19... Bf8 {[%clk 0:02:12.3]} 20. Qe2 {[%clk 0:01:53]} 20... g6 {[%clk
0:01:55.1]} 21. Nc2 {[%clk 0:01:48.4]} 21... a5 {[%clk 0:01:40.4]} 22. Na3
{[%clk 0:01:42.4]} 22... e5 {[%clk 0:01:29]} 23. dxe5 {[%clk 0:01:32.6]} 23...
dxe5 {[%clk 0:01:29.3]} 24. Nb5 {[%clk 0:01:31.6]} 24... Ra8 {[%clk 0:01:04.3]}
25. Bxe5 {[%clk 0:01:20.8]} 25... Nd7 {[%clk 0:00:59.2]} 26. Nbd4 {[%clk
0:01:18.2]} 26... Qd5 {[%clk 0:00:52.4]} 27. Qb5 {[%clk 0:01:14.4]} 27... Nxe5
{[%clk 0:00:40.4]} 28. Qxd5 {[%clk 0:01:13.6]} 28... Nxf3+ {[%clk 0:00:37.2]}
29. Qxf3 {[%clk 0:01:13.4]} 29... Bxf3 {[%clk 0:00:34.6]} 30. Nxf3 {[%clk
0:01:14.3]} 30... Bc5 {[%clk 0:00:30.1]} 31. Kf1 {[%clk 0:01:08.9]} 31... Kf8
{[%clk 0:00:26.6]} 32. Rad1 {[%clk 0:01:07.6]} 32... Rxe1+ {[%clk 0:00:21.1]}
33. Nxe1 {[%clk 0:01:06.2]} 33... Ke7 {[%clk 0:00:18.1]} 34. Ke2 {[%clk
0:01:04.1]} 34... h5 {[%clk 0:00:16.2]} 35. Nd3 {[%clk 0:01:02.1]} 35... Bd6
{[%clk 0:00:16]} 36. Kf3 {[%clk 0:00:55.3]} 36... Rc8 {[%clk 0:00:14.3]} 37.
Re1+ {[%clk 0:00:53.7]} 37... Kd7 {[%clk 0:00:14.2]} 38. Re4 {[%clk 0:00:54.2]}
38... f5 {[%clk 0:00:12.2]} 39. Rd4 {[%clk 0:00:54.6]} 39... Ke6 {[%clk
0:00:12]} 40. Nf4+ {[%clk 0:00:51.4]} 40... Bxf4 {[%clk 0:00:12.3]} 41. Kxf4
{[%clk 0:00:52.3]} 41... Rc6 {[%clk 0:00:10.3]} 42. h4 {[%clk 0:00:52.6]} 42...
Kf6 {[%clk 0:00:09.6]} 43. g3 {[%clk 0:00:52.8]} 43... Re6 {[%clk 0:00:09.7]}
44. f3 {[%clk 0:00:51.4]} 44... Rc6 {[%clk 0:00:09.4]} 45. b3 {[%clk 0:00:42.8]}
45... Rxc3 {[%clk 0:00:06.8]} 46. Rd6+ {[%clk 0:00:43]} 46... Kg7 {[%clk
0:00:07]} 47. Rxb6 {[%clk 0:00:43.1]} 47... Rd3 {[%clk 0:00:06.3]} 48. Kg5
{[%clk 0:00:32.7]} 48... Rxf3 {[%clk 0:00:05.4]} 49. Rxg6+ {[%clk 0:00:32.8]}
49... Kf7 {[%clk 0:00:06]} 50. Kxh5 {[%clk 0:00:31.3]} 50... Rxb3 {[%clk
0:00:06.1]} 51. Kh6 {[%clk 0:00:26.7]} 51... Rb4 {[%clk 0:00:05.6]} 52. Rg5
{[%clk 0:00:21.9]} 52... Kf6 {[%clk 0:00:04.6]} 53. Rg8 {[%clk 0:00:20.7]} 53...
Rxa4 {[%clk 0:00:04.3]} 54. Rf8+ {[%clk 0:00:21.3]} 54... Ke5 {[%clk 0:00:04.4]}
55. h5 {[%clk 0:00:21.9]} 55... Rg4 {[%clk 0:00:04.1]} 56. Ra8 {[%clk
0:00:19.3]} 56... Rxg3 {[%clk 0:00:04.3]} 57. Rxa5+ {[%clk 0:00:18.5]} 57... Kf4
{[%clk 0:00:04.1]} 58. Kh7 {[%clk 0:00:17.2]} 58... Rh3 {[%clk 0:00:03.9]} 59.
h6 {[%clk 0:00:17.4]} 59... Kg5 {[%clk 0:00:04.3]} 60. Ra6 {[%clk 0:00:16.3]}
60... f4 {[%clk 0:00:04.4]} 61. Ra5+ {[%clk 0:00:16]} 61... Kg4 {[%clk 0:00:04]}
62. Kg6 {[%clk 0:00:15.3]} 62... f3 {[%clk 0:00:03.6]} 63. h7 {[%clk 0:00:13.4]}
63... f2 {[%clk 0:00:03.1]} 64. Rg5+ {[%clk 0:00:13.8]} 64... Kf3 {[%clk
0:00:02.7]} 65. Rf5+ {[%clk 0:00:13.2]} 65... Ke2 {[%clk 0:00:02.5]} 66. Kg7
{[%clk 0:00:13.2]} 66... Rxh7+ {[%clk 0:00:02.4]} 67. Kxh7 {[%clk 0:00:13.1]}
67... f1=Q {[%clk 0:00:03.3]} 68. Rxf1 {[%clk 0:00:13.4]} 68... Kxf1 {[%clk
0:00:04.2]} 1/2-1/2